fUST/lending_fUST_20250625
["ID","MTS","AMOUNT","RATE_DAILY","PERIOD"]
[367467338,1750806648595,-205.791162,0.00019452,7]
[367467340,1750806648607,-668.13,0.00019452,2]
[367467342,1750806648619,-460.0,0.00019452,2]
[367467345,1750806648629,-297.44591609,0.00019452,2]
[367467371,1750806648870,-449.083444,0.00016986,2]
[367467373,1750806648880,-1417.87092482,0.00017408,2]
[367467376,1750806648897,-383.73,0.00017408,2]
[367467378,1750806648909,-4302.15429459,0.00017408,2]
[367467414,1750806649684,-1233.23941125,0.00016418,2]
[367467416,1750806649694,-1233.23941125,0.00016418,2]
[367467418,1750806649703,-1233.23941125,0.00016418,2]
[367467420,1750806649711,-1233.23941125,0.00016418,2]
[367467422,1750806649721,-1233.23941125,0.00016418,2]
[367467424,1750806649730,-1233.23941125,0.00016418,2]
[367467426,1750806649739,-1233.23941125,0.00016418,2]
[367467428,1750806649749,-56.17430509,0.00016418,2]
[367467430,1750806649760,-1177.06510616,0.00016418,2]
[367467432,1750806649770,-1233.23941125,0.00016418,2]
[367467434,1750806649779,-1233.23941125,0.00016418,2]
[367467436,1750806649789,-1233.23941125,0.00016418,2]
[367467438,1750806649798,-1233.23941125,0.00016418,2]
[367467440,1750806649808,-1233.23941125,0.00016418,2]
[367467442,1750806649817,-1233.23941125,0.00016418,2]
[367467444,1750806649826,-1233.23941125,0.00016418,2]
[367467446,1750806649835,-1233.23941125,0.00016418,2]
[367467448,1750806649844,-1233.23941125,0.00016418,2]
[367467450,1750806649853,-1233.23941125,0.00016418,2]
[367467452,1750806649862,-1233.23941125,0.00016418,2]
[367467454,1750806649872,-1233.23941125,0.00016418,2]
[367467456,1750806649880,-1233.23941125,0.00016418,2]
[367467458,1750806649890,-1233.23941125,0.00016418,2]
[367467460,1750806649899,-1233.23941125,0.00016418,2]
[367467462,1750806649908,-1233.23941125,0.00016418,2]
[367467464,1750806649917,-1233.23941125,0.00016418,2]
[367467466,1750806649927,-1233.23941125,0.00016418,2]
[367467468,1750806649936,-1233.23941125,0.00016418,2]
[367467470,1750806649946,-888.92373588,0.00016418,2]
[367467472,1750806649957,-344.31567537,0.00016418,2]
[367467474,1750806649967,-2295.78684047,0.00017408,2]
[367467661,1750806689172,447.944813,0.00013699,2]
[367467665,1750806724460,300.88103587,0.0001939,9]
[367467667,1750806982782,5000.0,0.00016,2]
[367467668,1750806983109,5000.0,0.00016,2]
[367467673,1750807312224,4653.24351715,0.00015419,2]
[367467674,1750807312753,20000.0,0.00015419,2]
[367467675,1750807312775,246.75648285,0.00015419,2]
[367467688,1750807716688,934.080311,0.0002598,120]
[367467746,1750807832271,-255.0,0.00016159,2]
[367467748,1750807832281,-153.0,0.00016159,2]
[367467750,1750807832290,-156.55591695,0.0001631,2]
[367467752,1750807832299,-825.64611949,0.00016338,2]
[367467755,1750807832316,-337.62147107,0.00016338,2]
[367467757,1750807832325,-160.0,0.00016397,2]
[367467759,1750807832335,-981.72583137,0.00016408,2]
[367467761,1750807832343,-300.0,0.00016409,2]
[367467763,1750807832353,-300.0,0.00016409,2]
[367467781,1750807832534,-1200.0,0.00016409,2]
[367467783,1750807832543,-18811.05046075,0.0001641,2]
[367467784,1750807832561,-17329.3035652,0.0001641,2]
[367467785,1750807832572,-466.86868585,0.0001641,2]
[367467786,1750807832586,-13392.7772882,0.0001641,2]
[367467787,1750807832596,-500.0,0.0001641,2]
[367467788,1750807832606,-215.66767738,0.0001641,2]
[367467789,1750807832615,-392.43235002,0.0001641,2]
[367467790,1750807832624,-556.63650916,0.0001641,2]
[367467791,1750807832634,-500.0,0.0001641,2]
[367467792,1750807832644,-500.0,0.0001641,2]
[367467793,1750807832653,-500.0,0.0001641,2]
[367467794,1750807832663,-500.0,0.0001641,2]
[367467795,1750807832672,-500.0,0.0001641,2]
[367467796,1750807832682,-430.37889498,0.0001641,2]
[367467797,1750807832691,-500.0,0.0001641,2]
[367467798,1750807832700,-500.0,0.0001641,2]
[367467799,1750807832711,-500.0,0.0001641,2]
[367467800,1750807832720,-191.57685191,0.0001641,2]
[367467801,1750807832730,-500.0,0.0001641,2]
[367467802,1750807832739,-500.0,0.0001641,2]
[367467803,1750807832749,-500.0,0.0001641,2]
[367467804,1750807832759,-500.0,0.0001641,2]
[367467805,1750807832768,-153.36486702,0.0001641,2]
[367467806,1750807832778,-500.0,0.0001641,2]
[367467807,1750807832787,-500.0,0.0001641,2]
[367467808,1750807832797,-500.0,0.0001641,2]
[367467809,1750807832807,-500.0,0.0001641,2]
[367467810,1750807832817,-500.0,0.0001641,2]
[367467811,1750807832827,-500.0,0.0001641,2]
[367467812,1750807832836,-500.0,0.0001641,2]
[367467813,1750807832846,-343.98283146,0.0001641,2]
[367467814,1750807832855,-500.0,0.0001641,2]
[367467815,1750807832865,-236.33220728,0.0001641,2]
[367467816,1750807832874,-500.0,0.0001641,2]
[367467817,1750807832883,-500.0,0.0001641,2]
[367467818,1750807832893,-500.0,0.0001641,2]
[367467819,1750807832902,-303.81731812,0.0001641,2]
[367467820,1750807832912,-500.0,0.0001641,2]
[367467821,1750807832921,-500.0,0.0001641,2]
[367467822,1750807832931,-500.0,0.0001641,2]
[367467823,1750807832940,-500.0,0.0001641,2]
[367467824,1750807832950,-500.0,0.0001641,2]
[367467825,1750807832959,-500.0,0.0001641,2]
[367467826,1750807832972,-500.0,0.0001641,2]
[367467827,1750807832981,-500.0,0.0001641,2]
[367467828,1750807832991,-632.1540045,0.0001641,2]
[367467829,1750807833000,-500.0,0.0001641,2]
[367467830,1750807833011,-412.67441729,0.0001641,2]
[367467831,1750807833020,-196.33897126,0.0001641,2]
[367467832,1750807833031,-300.0,0.0001641,2]
[367467833,1750807833041,-357.0,0.0001641,2]
[367467834,1750807833052,-500.0,0.00016411,2]
[367467835,1750807833063,-234.64,0.00016428,3]
[367467836,1750807833073,-198.16306545,0.00016438,2]
[367467837,1750807833083,-93.89117731,0.00016438,2]
[367467892,1750807838141,-780.97036442,0.00016429,2]
[367467894,1750807838150,-780.97036442,0.00016429,2]
[367467897,1750807838160,-780.97036442,0.00016429,2]
[367467900,1750807838169,-209.61951983,0.00016429,2]
[367467903,1750807838181,-571.35084459,0.00016429,2]
[367467907,1750807838191,-780.97036442,0.00016429,2]
[367467908,1750807838200,-780.97036442,0.00016429,2]
[367467910,1750807838209,-780.97036442,0.00016429,2]
[367467912,1750807838219,-780.97036442,0.00016429,2]
[367467915,1750807838228,-780.97036442,0.00016429,2]
[367467916,1750807838237,-780.97036442,0.00016429,2]
[367467919,1750807838247,-780.97036442,0.00016429,2]
[367467921,1750807838257,-780.97036442,0.00016429,2]
[367467923,1750807838266,-780.97036442,0.00016429,2]
[367467925,1750807838275,-780.97036442,0.00016429,2]
[367467927,1750807838285,-493.2518671,0.00016429,2]
[367467931,1750807838316,-287.71849732,0.00016429,2]
[367467933,1750807838325,-780.97036442,0.00016429,2]
[367467935,1750807838335,-366.10882269,0.00016438,2]
[367467937,1750807838344,-460.0,0.00016438,2]
[367467939,1750807838353,-460.0,0.00016438,2]
[367467941,1750807838362,-460.0,0.00016438,2]
[367467943,1750807838371,-374.61475286,0.00016438,2]
[367467945,1750807838380,-312.41056959,0.00016438,2]
[367467947,1750807838390,-460.0,0.00016438,2]
[367467948,1750807838400,-460.0,0.00016438,2]
[367467949,1750807838409,-460.0,0.00016438,2]
[367467950,1750807838418,-460.0,0.00016438,2]
[367467951,1750807838427,-410.0,0.00016438,2]
[367467952,1750807838437,-441.36013018,0.00016438,2]
[367467953,1750807838447,-460.0,0.00016438,2]
[367467954,1750807838456,-460.0,0.00016438,2]
[367467955,1750807838465,-460.0,0.00016438,2]
[367467956,1750807838475,-243.19832708,0.00016438,2]
[367467957,1750807838484,-460.0,0.00016438,2]
[367467958,1750807838494,-460.0,0.00016438,2]
[367467959,1750807838505,-518.80137931,0.00016438,2]
[367467960,1750807838514,-460.0,0.00016438,2]
[367467961,1750807838523,-460.0,0.00016438,2]
[367467962,1750807838533,-460.0,0.00016438,2]
[367467963,1750807838542,-460.0,0.00016438,2]
[367467964,1750807838551,-353.4052797,0.00016438,2]
[367467965,1750807838561,-340.0,0.00016438,2]
[367467966,1750807838571,-460.0,0.00016438,2]
[367467967,1750807838580,-460.0,0.00016438,2]
[367467968,1750807838589,-460.0,0.00016438,2]
[367467969,1750807838599,-460.0,0.00016438,2]
[367467970,1750807838609,-460.0,0.00016438,2]
[367467971,1750807838618,-460.0,0.00016438,2]
[367467972,1750807838627,-460.0,0.00016438,2]
[367467973,1750807838637,-460.0,0.00016438,2]
[367467974,1750807838646,-1000.0,0.00016438,2]
[367467975,1750807838655,-1000.0,0.00016438,2]
[367467976,1750807838664,-1000.0,0.00016438,2]
[367467977,1750807838673,-1000.0,0.00016438,2]
[367467978,1750807838686,-1000.0,0.00016438,2]
[367467979,1750807838699,-1000.0,0.00016438,2]
[367467980,1750807838713,-1000.0,0.00016438,2]
[367467981,1750807838725,-1000.0,0.00016438,2]
[367467982,1750807838738,-1000.0,0.00016438,2]
[367467983,1750807838750,-1000.0,0.00016438,2]
[367467984,1750807838760,-1000.0,0.00016438,2]
[367467985,1750807838772,-1000.0,0.00016438,2]
[367467986,1750807838784,-1000.0,0.00016438,2]
[367467987,1750807838796,-1000.0,0.00016438,2]
[367467988,1750807838807,-1000.0,0.00016438,2]
[367467989,1750807838818,-1000.0,0.00016438,2]
[367467990,1750807838829,-1000.0,0.00016438,2]
[367467991,1750807838841,-1000.0,0.00016438,2]
[367467992,1750807838852,-1000.0,0.00016438,2]
[367467993,1750807838864,-1000.0,0.00016438,2]
[367467994,1750807838875,-1000.0,0.00016438,2]
[367467995,1750807838887,-210.11127447,0.00016438,2]
[367467996,1750807838899,-460.0,0.00016438,2]
[367467997,1750807838912,-460.0,0.00016438,2]
[367467998,1750807838924,-460.0,0.00016438,2]
[367467999,1750807838936,-856.07,0.00016438,2]
[367468000,1750807838947,-856.07,0.00016438,2]
[367468001,1750807838959,-856.07,0.00016438,2]
[367468002,1750807838973,-856.07,0.00016438,2]
[367468003,1750807838984,-856.07,0.00016438,2]
[367468004,1750807838995,-856.07,0.00016438,2]
[367468005,1750807839009,-856.07,0.00016438,2]
[367468006,1750807839020,-856.07,0.00016438,2]
[367468007,1750807839032,-460.0,0.00016438,2]
[367468008,1750807839044,-460.0,0.00016438,2]
[367468009,1750807839057,-460.0,0.00016438,2]
[367468010,1750807839067,-390.0,0.00016438,2]
[367468011,1750807839077,-460.0,0.00016438,2]
[367468012,1750807839087,-403.75503242,0.00016438,2]
[367468013,1750807839100,-460.0,0.00016438,2]
[367468014,1750807839110,-460.0,0.00016438,2]
[367468015,1750807839122,-460.0,0.00016438,2]
[367468016,1750807839133,-460.0,0.00016438,2]
[367468017,1750807839145,-494.92698807,0.00016438,2]
[367468018,1750807839156,-460.0,0.00016438,2]
[367468019,1750807839168,-460.0,0.00016438,2]
[367468020,1750807839179,-460.0,0.00016438,2]
[367468021,1750807839191,-460.0,0.00016438,2]
[367468022,1750807839203,-460.0,0.00016438,2]
[367468023,1750807839215,-460.0,0.00016438,2]
[367468024,1750807839228,-460.0,0.00016438,2]
[367468025,1750807839241,-460.0,0.00016438,2]
[367468026,1750807839252,-460.0,0.00016438,2]
[367468027,1750807839264,-460.0,0.00016438,2]
[367468028,1750807839274,-460.0,0.00016438,2]
[367468029,1750807839285,-460.0,0.00016438,2]
[367468030,1750807839295,-447.32624458,0.00016438,2]
[367468031,1750807839306,-460.0,0.00016438,2]
[367468032,1750807839317,-290.0,0.00016438,2]
[367468033,1750807839329,-460.0,0.00016438,2]
[367468034,1750807839341,-460.0,0.00016438,2]
[367468035,1750807839353,-460.0,0.00016438,2]
[367468036,1750807839364,-460.0,0.00016438,2]
[367468037,1750807839374,-460.0,0.00016438,2]
[367468038,1750807839384,-552.52605129,0.00016438,2]
[367468039,1750807839395,-460.0,0.00016438,2]
[367468041,1750807839407,-460.0,0.00016438,2]
[367468042,1750807839417,-460.0,0.00016438,2]
[367468043,1750807839430,-460.0,0.00016438,2]
[367468044,1750807839442,-460.0,0.00016438,2]
[367468045,1750807839454,-460.0,0.00016438,2]
[367468046,1750807839464,-460.0,0.00016438,2]
[367468047,1750807839474,-547.59,0.00016438,2]
[367468048,1750807839484,-460.0,0.00016438,2]
[367468049,1750807839493,-460.0,0.00016438,2]
[367468050,1750807839504,-460.0,0.00016438,2]
[367468051,1750807839514,-460.0,0.00016438,2]
[367468052,1750807839525,-460.0,0.00016438,2]
[367468053,1750807839535,-706.01,0.00016438,2]
[367468054,1750807839547,-483.1,0.00016438,2]
[367468055,1750807839558,-460.0,0.00016438,2]
[367468056,1750807839570,-460.0,0.00016438,2]
[367468057,1750807839583,-460.0,0.00016438,2]
[367468058,1750807839593,-460.0,0.00016438,2]
[367468059,1750807839603,-460.0,0.00016438,2]
[367468060,1750807839613,-380.0,0.00016438,2]
[367468061,1750807839623,-460.0,0.00016438,2]
[367468062,1750807839633,-460.0,0.00016438,2]
[367468063,1750807839644,-460.0,0.00016438,2]
[367468064,1750807839654,-440.0,0.00016438,2]
[367468065,1750807839665,-460.0,0.00016438,2]
[367468066,1750807839675,-460.0,0.00016438,2]
[367468067,1750807839686,-460.0,0.00016438,2]
[367468068,1750807839696,-460.0,0.00016438,2]
[367468069,1750807839707,-460.0,0.00016438,2]
[367468070,1750807839718,-460.0,0.00016438,2]
[367468071,1750807839729,-460.0,0.00016438,2]
[367468072,1750807839739,-460.0,0.00016438,2]
[367468073,1750807839749,-460.0,0.00016438,2]
[367468074,1750807839760,-460.0,0.00016438,2]
[367468075,1750807839770,-460.0,0.00016438,2]
[367468076,1750807839781,-932.9,0.00016438,2]
[367468077,1750807839793,-550.34,0.00016438,2]
[367468078,1750807839804,-460.0,0.00016438,2]
[367468079,1750807839815,-460.0,0.00016438,2]
[367468080,1750807839825,-460.0,0.00016438,2]
[367468081,1750807839836,-460.0,0.00016438,2]
[367468082,1750807839847,-460.0,0.00016438,2]
[367468083,1750807839858,-450.37840309,0.00016438,2]
[367468084,1750807839868,-460.0,0.00016438,2]
[367468085,1750807839879,-460.0,0.00016438,2]
[367468086,1750807839890,-460.0,0.00016438,2]
[367468087,1750807839901,-460.0,0.00016438,2]
[367468088,1750807839911,-460.0,0.00016438,2]
[367468089,1750807839923,-550.85,0.00016438,2]
[367468091,1750807839933,-460.0,0.00016438,2]
[367468093,1750807839944,-460.0,0.00016438,2]
[367468095,1750807839954,-460.0,0.00016438,2]
[367468097,1750807839964,-311.03300288,0.00016438,2]
[367468099,1750807839979,-500.0,0.00016438,2]
[367468101,1750807839990,-199.73108435,0.00016438,2]
[367468103,1750807840001,-460.0,0.00016438,2]
[367468105,1750807840012,-460.0,0.00016438,2]
[367468107,1750807840023,-460.0,0.00016438,2]
[367468109,1750807840035,-1747.11,0.00016438,2]
[367468111,1750807840046,-539.49,0.00016438,2]
[367468113,1750807840057,-460.0,0.00016438,2]
[367468116,1750807840067,-460.0,0.00016438,2]
[367468118,1750807840078,-460.0,0.00016438,2]
[367468120,1750807840089,-460.0,0.00016438,2]
[367468122,1750807840099,-460.0,0.00016438,2]
[367468124,1750807840110,-500.0,0.00016438,2]
[367468126,1750807840121,-390.63999908,0.00016438,2]
[367468128,1750807840132,-460.0,0.00016438,2]
[367468130,1750807840143,-460.0,0.00016438,2]
[367468132,1750807840154,-528.69,0.00016438,2]
[367468135,1750807840164,-460.0,0.00016438,2]
[367468137,1750807840175,-589.16,0.00016438,2]
[367468139,1750807840186,-460.0,0.00016438,2]
[367468141,1750807840196,-353.24921236,0.00016438,2]
[367468143,1750807840207,-460.0,0.00016438,2]
[367468145,1750807840217,-460.0,0.00016438,2]
[367468147,1750807840229,-460.0,0.00016438,2]
[367468149,1750807840239,-460.0,0.00016438,2]
[367468152,1750807840250,-460.0,0.00016438,2]
[367468154,1750807840261,-460.0,0.00016438,2]
[367468156,1750807840271,-460.0,0.00016438,2]
[367468158,1750807840282,-460.0,0.00016438,2]
[367468160,1750807840293,-730.22,0.00016438,2]
[367468162,1750807840304,-460.0,0.00016438,2]
[367468164,1750807840314,-460.0,0.00016438,2]
[367468166,1750807840325,-460.0,0.00016438,2]
[367468169,1750807840336,-460.0,0.00016438,2]
[367468171,1750807840346,-460.0,0.00016438,2]
[367468173,1750807840357,-460.0,0.00016438,2]
[367468175,1750807840368,-460.0,0.00016438,2]
[367468177,1750807840379,-460.0,0.00016438,2]
[367468179,1750807840390,-460.0,0.00016438,2]
[367468181,1750807840401,-460.0,0.00016438,2]
[367468184,1750807840412,-460.0,0.00016438,2]
[367468186,1750807840423,-460.0,0.00016438,2]
[367468188,1750807840434,-560.89,0.00016438,2]
[367468190,1750807840444,-544.283124,0.00016438,2]
[367468192,1750807840455,-460.0,0.00016438,2]
[367468194,1750807840465,-440.0,0.00016438,2]
[367468196,1750807840475,-910.0,0.00016438,2]
[367468198,1750807840484,-703.14,0.00016438,2]
[367468200,1750807840493,-460.0,0.00016438,2]
[367468202,1750807840503,-460.0,0.00016438,2]
[367468204,1750807840513,-460.0,0.00016438,2]
[367468206,1750807840522,-460.0,0.00016438,2]
[367468208,1750807840531,-460.0,0.00016438,2]
[367468230,1750807840732,-460.0,0.00016438,2]
[367468233,1750807840749,-460.0,0.00016438,2]
[367468236,1750807840762,-460.0,0.00016438,2]
[367468238,1750807840771,-460.0,0.00016438,2]
[367468239,1750807840781,-460.0,0.00016438,2]
[367468241,1750807840790,-460.0,0.00016438,2]
[367468243,1750807840800,-460.0,0.00016438,2]
[367468245,1750807840809,-460.0,0.00016438,2]
[367468247,1750807840819,-460.0,0.00016438,2]
[367468249,1750807840829,-561.23456892,0.00016438,2]
[367468251,1750807840838,-670.46,0.00016438,2]
[367468253,1750807840847,-460.0,0.00016438,2]
[367468255,1750807840856,-460.0,0.00016438,2]
[367468257,1750807840865,-460.0,0.00016438,2]
[367468259,1750807840875,-460.0,0.00016438,2]
[367468261,1750807840884,-1208.96044108,0.00016519,2]
[367468263,1750807840894,-500.0,0.00016685,2]
[367468265,1750807840903,-856.07,0.00016711,2]
[367468267,1750807840913,-856.07,0.00016711,2]
[367468269,1750807840923,-460.0,0.00016712,2]
[367468271,1750807840933,-460.0,0.00016712,2]
[367468273,1750807840942,-460.0,0.00016712,2]
[367468275,1750807840952,-370.0,0.00016712,2]
[367468277,1750807840961,-460.0,0.00016712,2]
[367468279,1750807840973,-460.0,0.00016712,2]
[367468281,1750807840983,-460.0,0.00016712,2]
[367468283,1750807840991,-460.0,0.00016712,2]
[367468285,1750807841001,-460.0,0.00016712,2]
[367468287,1750807841010,-460.0,0.00016712,2]
[367468289,1750807841019,-460.0,0.00016712,2]
[367468291,1750807841029,-460.0,0.00016712,2]
[367468293,1750807841038,-460.0,0.00016712,2]
[367468295,1750807841048,-460.0,0.00016712,2]
[367468297,1750807841057,-460.0,0.00016712,2]
[367468299,1750807841067,-460.0,0.00016712,2]
[367468301,1750807841076,-460.0,0.00016712,2]
[367468303,1750807841086,-460.0,0.00016712,2]
[367468306,1750807841095,-547.59,0.00016712,2]
[367468308,1750807841105,-460.0,0.00016712,2]
[367468310,1750807841115,-460.0,0.00016712,2]
[367468311,1750807841124,-460.0,0.00016712,2]
[367468313,1750807841133,-706.01,0.00016712,2]
[367468315,1750807841142,-483.1,0.00016712,2]
[367468317,1750807841152,-460.0,0.00016712,2]
[367468320,1750807841161,-460.0,0.00016712,2]
[367468321,1750807841171,-460.0,0.00016712,2]
[367468323,1750807841180,-464.96,0.00016712,2]
[367468325,1750807841189,-257.35,0.00016712,2]
[367468327,1750807841198,-460.0,0.00016712,2]
[367468329,1750807841207,-932.9,0.00016712,2]
[367468331,1750807841217,-550.34,0.00016712,2]
[367468333,1750807841226,-460.0,0.00016712,2]
[367468335,1750807841236,-460.0,0.00016712,2]
[367468337,1750807841245,-460.0,0.00016712,2]
[367468339,1750807841255,-427.24,0.00016712,2]
[367468341,1750807841263,-460.0,0.00016712,2]
[367468343,1750807841272,-460.0,0.00016712,2]
[367468345,1750807841282,-550.85,0.00016712,2]
[367468347,1750807841291,-460.0,0.00016712,2]
[367468349,1750807841300,-460.0,0.00016712,2]
[367468351,1750807841310,-500.0,0.00016712,2]
[367468353,1750807841319,-460.0,0.00016712,2]
[367468355,1750807841327,-460.0,0.00016712,2]
[367468357,1750807841338,-1747.11,0.00016712,2]
[367468359,1750807841347,-460.0,0.00016712,2]
[367468361,1750807841356,-460.0,0.00016712,2]
[367468363,1750807841366,-460.0,0.00016712,2]
[367468365,1750807841377,-397.84,0.00016712,2]
[367468367,1750807841386,-460.0,0.00016712,2]
[367468369,1750807841395,-589.16,0.00016712,2]
[367468371,1750807841404,-460.0,0.00016712,2]
[367468372,1750807841413,-460.0,0.00016712,2]
[367468374,1750807841422,-577.87,0.00016712,2]
[367468376,1750807841431,-460.0,0.00016712,2]
[367468378,1750807841440,-432.40168516,0.00016712,2]
[367468380,1750807841450,-730.22,0.00016712,2]
[367468382,1750807841459,-430.0,0.00016712,2]
[367468384,1750807841469,-460.0,0.00016712,2]
[367468386,1750807841478,-460.0,0.00016712,2]
[367468388,1750807841487,-460.0,0.00016712,2]
[367468390,1750807841497,-460.0,0.00016712,2]
[367468392,1750807841507,-460.0,0.00016712,2]
[367468394,1750807841516,-560.89,0.00016712,2]
[367468396,1750807841526,-460.0,0.00016712,2]
[367468398,1750807841536,-910.0,0.00016712,2]
[367468400,1750807841545,-703.14,0.00016712,2]
[367468402,1750807841555,-460.0,0.00016712,2]
[367468404,1750807841564,-460.0,0.00016712,2]
[367468406,1750807841573,-460.0,0.00016712,2]
[367468408,1750807841583,-460.0,0.00016712,2]
[367468410,1750807841592,-460.0,0.00016712,2]
[367468412,1750807841601,-460.0,0.00016712,2]
[367468414,1750807841611,-460.0,0.00016712,2]
[367468416,1750807841622,-460.0,0.00016712,2]
[367468418,1750807841631,-670.46,0.00016712,2]
[367468420,1750807841640,-514.49,0.00016712,2]
[367468422,1750807841649,-151.0,0.00016767,2]
[367468424,1750807841658,-271.97510472,0.00016767,2]
[367468426,1750807841668,-151.0,0.00016767,2]
[367468428,1750807841677,-151.0,0.00016767,2]
[367468430,1750807841686,-151.0,0.00016767,2]
[367468432,1750807841695,-151.0,0.00016767,2]
[367468434,1750807841705,-151.0,0.00016767,2]
[367468436,1750807841715,-151.0,0.00016767,2]
[367468438,1750807841724,-198.0,0.00016767,2]
[367468440,1750807841734,-151.0,0.00016767,2]
[367468442,1750807841745,-151.0,0.00016767,2]
[367468444,1750807841754,-151.0,0.00016794,2]
[367468446,1750807841764,-151.0,0.00016794,2]
[367468448,1750807841773,-198.0,0.00016822,2]
[367468450,1750807841782,-151.0,0.00016822,2]
[367468452,1750807841791,-151.0,0.00016849,2]
[367468454,1750807841801,-1688.0,0.0001686,2]
[367468456,1750807841810,-25000.0,0.0001686,2]
[367468458,1750807841820,-16600.45794012,0.0001686,2]
[367468460,1750807841830,-500.0,0.0001686,2]
[367468462,1750807841840,-500.0,0.0001686,2]
[367468464,1750807841849,-500.0,0.0001686,2]
[367468466,1750807841858,-500.0,0.0001686,2]
[367468468,1750807841867,-500.0,0.0001686,2]
[367468469,1750807841877,-500.0,0.0001686,2]
[367468470,1750807841887,-500.0,0.0001686,2]
[367468471,1750807841896,-500.0,0.0001686,2]
[367468472,1750807841905,-207.4,0.0001686,2]
[367468473,1750807841915,-500.0,0.0001686,2]
[367468474,1750807841924,-500.0,0.0001686,2]
[367468475,1750807841933,-541.07205643,0.0001686,2]
[367468476,1750807841943,-5000.0,0.0001686,2]
[367468477,1750807841952,-151.0,0.00016877,2]
[367468478,1750807841961,-500.0,0.00016879,2]
[367468479,1750807841972,-3904.89025846,0.00016886,2]
[367468480,1750807841982,-500.0,0.00016896,2]
[367468481,1750807841991,-245.0,0.00016904,2]
[367468482,1750807842001,-1688.0,0.00016915,2]
[367468483,1750807842010,-381.39525874,0.00016959,2]
[367468484,1750807842021,-460.0,0.00016986,2]
[367468485,1750807842030,-212.68,0.00016986,2]
[367468486,1750807842040,-446.75265381,0.00016986,2]
[367468487,1750807842050,-312.77,0.00016986,2]
[367468488,1750807842061,-460.0,0.00016986,2]
[367468489,1750807842070,-460.0,0.00016986,2]
[367468491,1750807842079,-455.85,0.00016986,2]
[367468493,1750807842088,-547.59,0.00016986,2]
[367468495,1750807842098,-156.67,0.00016986,2]
[367468497,1750807842107,-494.64,0.00016986,2]
[367468499,1750807842117,-706.01,0.00016986,2]
[367468501,1750807842126,-483.1,0.00016986,2]
[367468503,1750807842136,-460.0,0.00016986,2]
[367468505,1750807842145,-427.62,0.00016986,2]
[367468507,1750807842155,-460.0,0.00016986,2]
[367468509,1750807842164,-460.0,0.00016986,2]
[367468511,1750807842174,-932.9,0.00016986,2]
[367468513,1750807842183,-550.34,0.00016986,2]
[367468515,1750807842192,-460.0,0.00016986,2]
[367468517,1750807842202,-460.0,0.00016986,2]
[367468519,1750807842212,-550.85,0.00016986,2]
[367468521,1750807842221,-460.0,0.00016986,2]
[367468523,1750807842230,-460.0,0.00016986,2]
[367468525,1750807842239,-1747.11,0.00016986,2]
[367468527,1750807842248,-460.0,0.00016986,2]
[367468529,1750807842258,-460.0,0.00016986,2]
[367468531,1750807842267,-460.0,0.00016986,2]
[367468533,1750807842276,-589.16,0.00016986,2]
[367468535,1750807842287,-460.0,0.00016986,2]
[367468537,1750807842296,-730.22,0.00016986,2]